[Event "Early-Titled-Tuesday-Blitz-October-10-2023"]
[Site "Chess.com"]
[Date "2023.10.10"]
[Round "8"]
[White "zverr1"]
[Black "Karttunen"]
[Result "1-0"]
[WhiteElo "2507"]
[BlackElo "2627"]
[TimeControl "180+1"]
[EndTime "9:27:38 PDT"]
[Termination "zverr1 won by resignation"]

1. d4 {[%clk 0:03:00.9]} 1... Nf6 {[%clk 0:02:58.7]} 2. c4 {[%clk 0:03:00]} 2...
g6 {[%clk 0:02:58.2]} 3. Nc3 {[%clk 0:02:59.8]} 3... d5 {[%clk 0:02:58.4]} 4.
cxd5 {[%clk 0:02:57]} 4... Nxd5 {[%clk 0:02:59.3]} 5. Bd2 {[%clk 0:02:57.8]}
5... Bg7 {[%clk 0:02:58.7]} 6. e4 {[%clk 0:02:58.2]} 6... Nb6 {[%clk 0:02:58.6]}
7. Be3 {[%clk 0:02:57.9]} 7... Nc6 {[%clk 0:02:55]} 8. Bb5 {[%clk 0:02:49.8]}
8... O-O {[%clk 0:02:51.7]} 9. Nge2 {[%clk 0:02:44.6]} 9... a6 {[%clk
0:02:30.1]} 10. Bxc6 {[%clk 0:02:44.2]} 10... bxc6 {[%clk 0:02:31]} 11. O-O
{[%clk 0:02:28.4]} 11... Nc4 {[%clk 0:02:27.9]} 12. Bc1 {[%clk 0:02:28.4]} 12...
a5 {[%clk 0:02:27.5]} 13. Qa4 {[%clk 0:02:09.8]} 13... Nd6 {[%clk 0:01:33]} 14.
Bg5 {[%clk 0:01:50.9]} 14... Nb5 {[%clk 0:01:22.2]} 15. Rfd1 {[%clk 0:01:36]}
15... Qd6 {[%clk 0:01:15]} 16. Rac1 {[%clk 0:01:17.1]} 16... h6 {[%clk
0:01:12.4]} 17. Bf4 {[%clk 0:01:15.4]} 17... Qb4 {[%clk 0:01:06.6]} 18. Qxb4
{[%clk 0:01:09.3]} 18... axb4 {[%clk 0:01:06.8]} 19. Nxb5 {[%clk 0:01:10.2]}
19... cxb5 {[%clk 0:01:06.7]} 20. Bxc7 {[%clk 0:00:58]} 20... Rxa2 {[%clk
0:01:06]} 21. Rd2 {[%clk 0:00:58.7]} 21... Bb7 {[%clk 0:01:01.2]} 22. f3 {[%clk
0:00:52.5]} 22... Rc8 {[%clk 0:01:01]} 23. Kf2 {[%clk 0:00:45.8]} 23... h5
{[%clk 0:00:48.8]} 24. Be5 {[%clk 0:00:35.7]} 24... Rc4 {[%clk 0:00:38]} 25.
Bxg7 {[%clk 0:00:31.6]} 25... Kxg7 {[%clk 0:00:37.8]} 26. Ke3 {[%clk 0:00:25.1]}
26... Kf8 {[%clk 0:00:31.6]} 27. b3 {[%clk 0:00:21]} 27... Ra3 {[%clk
0:00:19.3]} 28. Rd3 {[%clk 0:00:18.7]} 28... Rxc1 {[%clk 0:00:17.5]} 29. Nxc1
{[%clk 0:00:19.6]} 29... Ke8 {[%clk 0:00:15.6]} 30. Rd2 {[%clk 0:00:19.4]} 30...
Kd7 {[%clk 0:00:15.4]} 31. Rb2 {[%clk 0:00:19.9]} 31... f5 {[%clk 0:00:14.1]}
32. Nd3 {[%clk 0:00:20.1]} 32... fxe4 {[%clk 0:00:14.3]} 33. fxe4 {[%clk
0:00:21]} 33... Ra1 {[%clk 0:00:13.3]} 34. Nxb4 {[%clk 0:00:19.7]} 34... Rg1
{[%clk 0:00:12.4]} 35. Nd3 {[%clk 0:00:18.7]} 35... Rh1 {[%clk 0:00:12.5]} 36.
Nc5+ {[%clk 0:00:17.9]} 36... Kc6 {[%clk 0:00:12.7]} 37. Nxb7 {[%clk 0:00:18.8]}
37... Kxb7 {[%clk 0:00:13]} 38. h3 {[%clk 0:00:19.7]} 38... Rg1 {[%clk
0:00:12.8]} 39. Kf4 {[%clk 0:00:18.1]} 39... Re1 {[%clk 0:00:11.8]} 40. Ke5
{[%clk 0:00:18.1]} 40... Kc7 {[%clk 0:00:12.3]} 41. Rc2+ {[%clk 0:00:18.3]}
41... Kd7 {[%clk 0:00:12.7]} 42. Rc5 {[%clk 0:00:18.9]} 42... Re2 {[%clk
0:00:12.6]} 43. Rxb5 {[%clk 0:00:18.5]} 43... Rxg2 {[%clk 0:00:12.9]} 44. Rb7+
{[%clk 0:00:19.2]} 44... Kd8 {[%clk 0:00:11.2]} 45. Ke6 {[%clk 0:00:19.3]} 45...
Rg3 {[%clk 0:00:11.8]} 46. Rd7+ {[%clk 0:00:19.5]} 46... Kc8 {[%clk 0:00:11.5]}
47. Rxe7 {[%clk 0:00:20.2]} 47... Rxb3 {[%clk 0:00:11.3]} 48. d5 {[%clk
0:00:19.4]} 48... Rxh3 {[%clk 0:00:11.3]} 49. d6 {[%clk 0:00:19.8]} 49... Rd3
{[%clk 0:00:11.5]} 50. Re8+ {[%clk 0:00:20]} 50... Kb7 {[%clk 0:00:11.8]} 51. d7
{[%clk 0:00:20.8]} 51... h4 {[%clk 0:00:12]} 52. d8=Q {[%clk 0:00:21.1]} 52...
Rxd8 {[%clk 0:00:12.3]} 53. Rxd8 {[%clk 0:00:22]} 53... g5 {[%clk 0:00:12.9]}
54. Rh8 {[%clk 0:00:22.5]} 54... Kc6 {[%clk 0:00:12.6]} 55. Kf5 {[%clk
0:00:22.9]} 55... Kc5 {[%clk 0:00:13.1]} 56. e5 {[%clk 0:00:23]} 1-0

[Event "Early-Titled-Tuesday-Blitz-October-10-2023"]
[Site "Chess.com"]
[Date "2023.10.10"]
[Round "8"]
[White "Man-Chuk"]
[Black "Maksimus1998"]
[Result "1-0"]
[WhiteElo "2767"]
[BlackElo "2617"]
[TimeControl "180+1"]
[EndTime "9:27:39 PDT"]
[Termination "Man-Chuk won by resignation"]

1. e4 {[%clk 0:03:00.9]} 1... c5 {[%clk 0:02:58.1]} 2. Nf3 {[%clk 0:03:00.6]}
2... a6 {[%clk 0:02:58.6]} 3. c3 {[%clk 0:02:55.9]} 3... d5 {[%clk 0:02:58.6]}
4. exd5 {[%clk 0:02:52.5]} 4... Qxd5 {[%clk 0:02:59.5]} 5. Na3 {[%clk
0:02:47.5]} 5... Nf6 {[%clk 0:02:46.4]} 6. Nc4 {[%clk 0:02:40.7]} 6... Nbd7
{[%clk 0:02:42.9]} 7. a4 {[%clk 0:02:38]} 7... b6 {[%clk 0:02:37.5]} 8. d4
{[%clk 0:02:33.7]} 8... e6 {[%clk 0:02:34.5]} 9. Be2 {[%clk 0:02:32.5]} 9... Bb7
{[%clk 0:02:34.2]} 10. O-O {[%clk 0:02:22.8]} 10... cxd4 {[%clk 0:02:33.1]} 11.
Qxd4 {[%clk 0:02:21.7]} 11... Bc5 {[%clk 0:02:22.2]} 12. Qxd5 {[%clk 0:02:16.8]}
12... Bxd5 {[%clk 0:02:15]} 13. b4 {[%clk 0:02:14.2]} 13... Be7 {[%clk
0:02:12.9]} 14. Be3 {[%clk 0:02:01.9]} 14... Rb8 {[%clk 0:01:45.3]} 15. Bf4
{[%clk 0:01:44.1]} 15... Rc8 {[%clk 0:01:45]} 16. Nd6+ {[%clk 0:01:44.3]} 16...
Bxd6 {[%clk 0:01:45.1]} 17. Bxd6 {[%clk 0:01:45.2]} 17... Ne4 {[%clk 0:01:45.5]}
18. Bf4 {[%clk 0:01:19.4]} 18... a5 {[%clk 0:01:45.1]} 19. Ba6 {[%clk
0:00:49.4]} 19... Ra8 {[%clk 0:01:36.6]} 20. c4 {[%clk 0:00:26]} 20... Rxa6
{[%clk 0:01:35.3]} 21. cxd5 {[%clk 0:00:26.5]} 21... exd5 {[%clk 0:01:36.1]} 22.
b5 {[%clk 0:00:23.8]} 22... Ra8 {[%clk 0:01:35.8]} 23. Rfd1 {[%clk 0:00:22.5]}
23... Nef6 {[%clk 0:01:19.9]} 24. Bd6 {[%clk 0:00:15.2]} 24... Nc5 {[%clk
0:01:00.9]} 25. Rac1 {[%clk 0:00:13.8]} 25... Rc8 {[%clk 0:00:56.9]} 26. Ne5
{[%clk 0:00:11.2]} 26... Nfe4 {[%clk 0:00:20.3]} 27. Rxd5 {[%clk 0:00:11.5]}
27... Nxd6 {[%clk 0:00:20.4]} 28. Rxd6 {[%clk 0:00:12.4]} 28... Ke7 {[%clk
0:00:21.1]} 29. Rxb6 {[%clk 0:00:12.7]} 29... Nxa4 {[%clk 0:00:21.1]} 30. Nc6+
{[%clk 0:00:13]} 30... Kd7 {[%clk 0:00:20.3]} 31. Rb7+ {[%clk 0:00:12.5]} 31...
Ke6 {[%clk 0:00:19.9]} 32. Re1+ {[%clk 0:00:11.4]} 32... Kf6 {[%clk 0:00:19.8]}
33. Nxa5 {[%clk 0:00:08.2]} 33... Rb8 {[%clk 0:00:19.2]} 34. h4 {[%clk
0:00:03.9]} 34... Nc3 {[%clk 0:00:17.3]} 35. b6 {[%clk 0:00:02.8]} 35... Nd5
{[%clk 0:00:17.4]} 36. Rd7 {[%clk 0:00:02.3]} 36... Nxb6 {[%clk 0:00:08.8]} 37.
Rd6+ {[%clk 0:00:02.9]} 37... Kf5 {[%clk 0:00:09.4]} 38. Nc6 {[%clk 0:00:03.8]}
38... Nc4 {[%clk 0:00:05.3]} 39. Ne7+ {[%clk 0:00:03.7]} 39... Kg4 {[%clk
0:00:04.7]} 40. Rd4+ {[%clk 0:00:04.4]} 40... Kh5 {[%clk 0:00:04.8]} 41. Rxc4
{[%clk 0:00:04.9]} 41... Rbe8 {[%clk 0:00:05.2]} 42. Rce4 {[%clk 0:00:04.9]}
42... f5 {[%clk 0:00:05.2]} 43. Nxf5 {[%clk 0:00:05.3]} 43... Rxe4 {[%clk
0:00:04.9]} 44. Rxe4 {[%clk 0:00:06.2]} 44... g6 {[%clk 0:00:05.5]} 45. Ng3+
{[%clk 0:00:06.2]} 45... Kh6 {[%clk 0:00:05.5]} 46. Kh2 {[%clk 0:00:06.9]} 46...
Ra8 {[%clk 0:00:05.6]} 47. f3 {[%clk 0:00:07.6]} 1-0

[Event "Early-Titled-Tuesday-Blitz-October-10-2023"]
[Site "Chess.com"]
[Date "2023.10.10"]
[Round "8"]
[White "Abund"]
[Black "Journey_to_GrandMaster_YT"]
[Result "1-0"]
[WhiteElo "2792"]
[BlackElo "2636"]
[TimeControl "180+1"]
[EndTime "9:27:43 PDT"]
[Termination "Abund won on time"]

1. e4 {[%clk 0:03:00.9]} 1... d6 {[%clk 0:03:00.9]} 2. d4 {[%clk 0:03:00.8]}
2... Nf6 {[%clk 0:03:01.8]} 3. Nc3 {[%clk 0:03:01.3]} 3... e5 {[%clk 0:03:02.7]}
4. Nf3 {[%clk 0:03:00.8]} 4... Nbd7 {[%clk 0:03:02.3]} 5. Rg1 {[%clk 0:03:00.5]}
5... h5 {[%clk 0:03:00.4]} 6. Bg5 {[%clk 0:02:57.3]} 6... c6 {[%clk 0:03:00]} 7.
Qd2 {[%clk 0:02:56.9]} 7... b5 {[%clk 0:02:57.9]} 8. Bd3 {[%clk 0:02:56.9]} 8...
Be7 {[%clk 0:02:34.9]} 9. a4 {[%clk 0:02:47.4]} 9... b4 {[%clk 0:02:34]} 10. Ne2
{[%clk 0:02:47.7]} 10... a5 {[%clk 0:02:32.7]} 11. Ng3 {[%clk 0:02:40.6]} 11...
g6 {[%clk 0:02:30.3]} 12. b3 {[%clk 0:02:20.4]} 12... Bb7 {[%clk 0:02:22.6]} 13.
h4 {[%clk 0:02:15.1]} 13... O-O {[%clk 0:02:09.9]} 14. O-O-O {[%clk 0:02:10.6]}
14... Ng4 {[%clk 0:02:07.3]} 15. dxe5 {[%clk 0:02:01.6]} 15... Ndxe5 {[%clk
0:01:55.5]} 16. Nxe5 {[%clk 0:01:53]} 16... Nxe5 {[%clk 0:01:55.2]} 17. Be2
{[%clk 0:01:46.6]} 17... d5 {[%clk 0:01:33.9]} 18. f4 {[%clk 0:01:30.7]} 18...
Nd7 {[%clk 0:01:24.3]} 19. e5 {[%clk 0:01:23.8]} 19... Re8 {[%clk 0:01:13]} 20.
Nf1 {[%clk 0:00:56.7]} 20... Bxg5 {[%clk 0:01:08.8]} 21. hxg5 {[%clk 0:00:55.8]}
21... Nc5 {[%clk 0:01:05.1]} 22. Bf3 {[%clk 0:00:50.3]} 22... Ne4 {[%clk
0:00:40.9]} 23. Bxe4 {[%clk 0:00:47.2]} 23... dxe4 {[%clk 0:00:41.8]} 24. Qe2
{[%clk 0:00:35.9]} 24... Qc7 {[%clk 0:00:27.7]} 25. Ne3 {[%clk 0:00:31.3]} 25...
Rad8 {[%clk 0:00:26.1]} 26. g4 {[%clk 0:00:30.4]} 26... h4 {[%clk 0:00:23.3]}
27. Rh1 {[%clk 0:00:24.2]} 27... Rxd1+ {[%clk 0:00:22.5]} 28. Qxd1 {[%clk
0:00:23.7]} 28... Rd8 {[%clk 0:00:20.4]} 29. Qe1 {[%clk 0:00:23.8]} 29... h3
{[%clk 0:00:16.1]} 30. Rxh3 {[%clk 0:00:21.4]} 30... Qb6 {[%clk 0:00:14.7]} 31.
Qh4 {[%clk 0:00:21.1]} 31... Kf8 {[%clk 0:00:15.2]} 32. Qh8+ {[%clk 0:00:18.9]}
32... Ke7 {[%clk 0:00:15.4]} 33. Qf6+ {[%clk 0:00:19.6]} 33... Kd7 {[%clk
0:00:15.6]} 34. e6+ {[%clk 0:00:11.8]} 34... fxe6 {[%clk 0:00:15.1]} 35. Nc4
{[%clk 0:00:11.2]} 35... Qg1+ {[%clk 0:00:14.7]} 36. Kb2 {[%clk 0:00:11]} 36...
Kc8 {[%clk 0:00:13.4]} 37. Rh8 {[%clk 0:00:09.5]} 37... Rxh8 {[%clk 0:00:07]}
38. Qxh8+ {[%clk 0:00:10.4]} 38... Kc7 {[%clk 0:00:07.4]} 39. Qe5+ {[%clk
0:00:10.2]} 39... Kd7 {[%clk 0:00:05.4]} 40. Qxe4 {[%clk 0:00:09.4]} 40... Qc5
{[%clk 0:00:03.9]} 41. Qe5 {[%clk 0:00:09.1]} 41... Qd5 {[%clk 0:00:02.7]} 42.
Nb6+ {[%clk 0:00:08.8]} 1-0

[Event "Early-Titled-Tuesday-Blitz-October-10-2023"]
[Site "Chess.com"]
[Date "2023.10.10"]
[Round "8"]
[White "hakanazeri2"]
[Black "Kotofeyca"]
[Result "1-0"]
[WhiteElo "2603"]
[BlackElo "2430"]
[TimeControl "180+1"]
[EndTime "9:27:44 PDT"]
[Termination "hakanazeri2 won by checkmate"]

1. Nf3 {[%clk 0:03:00.9]} 1... d5 {[%clk 0:02:57.5]} 2. d4 {[%clk 0:03:00.9]}
2... c6 {[%clk 0:02:57.8]} 3. c4 {[%clk 0:03:00.5]} 3... Nf6 {[%clk 0:02:56.7]}
4. Nc3 {[%clk 0:03:00.4]} 4... dxc4 {[%clk 0:02:56.6]} 5. a4 {[%clk 0:02:57.7]}
5... Bg4 {[%clk 0:02:55.8]} 6. Ne5 {[%clk 0:02:54.1]} 6... Bh5 {[%clk
0:02:56.3]} 7. Nxc4 {[%clk 0:02:54.3]} 7... Na6 {[%clk 0:02:53.4]} 8. Qb3 {[%clk
0:02:38.3]} 8... e6 {[%clk 0:02:52.5]} 9. e3 {[%clk 0:02:37.8]} 9... Nb4 {[%clk
0:02:51.7]} 10. Bd2 {[%clk 0:02:31.5]} 10... a5 {[%clk 0:02:51.6]} 11. f3 {[%clk
0:02:26.3]} 11... Bg6 {[%clk 0:02:46]} 12. Rc1 {[%clk 0:02:25.6]} 12... c5
{[%clk 0:02:41.6]} 13. Nb5 {[%clk 0:01:50.6]} 13... cxd4 {[%clk 0:02:34.4]} 14.
Nb6 {[%clk 0:01:33.4]} 14... Qxb6 {[%clk 0:02:12.7]} 15. Nc7+ {[%clk 0:01:29.9]}
15... Kd8 {[%clk 0:01:46.9]} 16. Nxa8 {[%clk 0:01:29.2]} 16... Qa7 {[%clk
0:01:18.4]} 17. Qc4 {[%clk 0:01:24.4]} 17... Nc6 {[%clk 0:00:58.2]} 18. b4
{[%clk 0:00:32.7]} 18... Bxb4 {[%clk 0:00:54]} 19. Bxb4 {[%clk 0:00:31.6]} 19...
axb4 {[%clk 0:00:54.9]} 20. Qb5 {[%clk 0:00:22.8]} 20... Qxa8 {[%clk 0:00:52.4]}
21. Qb6+ {[%clk 0:00:23.2]} 21... Ke8 {[%clk 0:00:30.4]} 22. Bb5 {[%clk
0:00:22.6]} 22... Nd7 {[%clk 0:00:29.3]} 23. Bxc6 {[%clk 0:00:12.4]} 23... bxc6
{[%clk 0:00:28.2]} 24. Qxd4 {[%clk 0:00:13.2]} 24... Qxa4 {[%clk 0:00:17.6]} 25.
Rd1 {[%clk 0:00:12.9]} 25... c5 {[%clk 0:00:16.9]} 26. Qxg7 {[%clk 0:00:13]}
26... Rf8 {[%clk 0:00:14.6]} 27. O-O {[%clk 0:00:13.2]} 27... Ke7 {[%clk
0:00:13.8]} 28. Rd2 {[%clk 0:00:11.3]} 28... Nf6 {[%clk 0:00:13.5]} 29. Rfd1
{[%clk 0:00:09.6]} 29... b3 {[%clk 0:00:12.3]} 30. Qh6 {[%clk 0:00:08.3]} 30...
Qc6 {[%clk 0:00:10.1]} 31. Qg5 {[%clk 0:00:06.2]} 31... Bc2 {[%clk 0:00:05.2]}
32. Rd7+ {[%clk 0:00:04.1]} 32... Qxd7 {[%clk 0:00:05.5]} 33. Rxd7+ {[%clk
0:00:04.8]} 33... Kxd7 {[%clk 0:00:06.1]} 34. Qxf6 {[%clk 0:00:05.7]} 34... Kc6
{[%clk 0:00:03.9]} 35. Kf2 {[%clk 0:00:03.4]} 35... Rb8 {[%clk 0:00:02.4]} 36.
Qb2 {[%clk 0:00:03.8]} 36... c4 {[%clk 0:00:02.6]} 37. Kg3 {[%clk 0:00:04.4]}
37... Bd3 {[%clk 0:00:03]} 38. h4 {[%clk 0:00:03.5]} 38... Rb5 {[%clk
0:00:03.1]} 39. Kh3 {[%clk 0:00:02.1]} 39... h5 {[%clk 0:00:03.3]} 40. g4 {[%clk
0:00:02.5]} 40... hxg4+ {[%clk 0:00:03.6]} 41. fxg4 {[%clk 0:00:03.4]} 41... Kc5
{[%clk 0:00:04.2]} 42. h5 {[%clk 0:00:02.7]} 42... Kb4 {[%clk 0:00:05.1]} 43.
Qd2+ {[%clk 0:00:02.1]} 43... Ka3 {[%clk 0:00:04.2]} 44. h6 {[%clk 0:00:02.6]}
44... b2 {[%clk 0:00:04.3]} 45. Qc3+ {[%clk 0:00:03]} 45... Rb3 {[%clk
0:00:04.1]} 46. Qa5# {[%clk 0:00:03.3]} 1-0

[Event "Early-Titled-Tuesday-Blitz-October-10-2023"]
[Site "Chess.com"]
[Date "2023.10.10"]
[Round "8"]
[White "ExchangeAB"]
[Black "maracayo"]
[Result "1/2-1/2"]
[WhiteElo "2496"]
[BlackElo "2378"]
[TimeControl "180+1"]
[EndTime "9:27:45 PDT"]
[Termination "Game drawn by repetition"]

1. d4 {[%clk 0:03:00.9]} 1... d6 {[%clk 0:03:00.9]} 2. Nc3 {[%clk 0:03:01.2]}
2... Nf6 {[%clk 0:03:01.1]} 3. e4 {[%clk 0:03:01]} 3... c6 {[%clk 0:03:01.5]} 4.
Bc4 {[%clk 0:03:00.3]} 4... d5 {[%clk 0:02:59.9]} 5. exd5 {[%clk 0:03:00.3]}
5... cxd5 {[%clk 0:03:00.8]} 6. Bd3 {[%clk 0:03:00.7]} 6... Nc6 {[%clk
0:03:00.7]} 7. Nge2 {[%clk 0:03:00.9]} 7... Bg4 {[%clk 0:02:58.9]} 8. O-O {[%clk
0:03:01.4]} 8... e6 {[%clk 0:02:57.6]} 9. Bf4 {[%clk 0:03:00.1]} 9... Be7 {[%clk
0:02:39]} 10. Nb5 {[%clk 0:02:55.3]} 10... O-O {[%clk 0:02:36]} 11. h3 {[%clk
0:02:49.4]} 11... Bh5 {[%clk 0:02:25.6]} 12. a4 {[%clk 0:02:44.2]} 12... a6
{[%clk 0:02:21.7]} 13. Na3 {[%clk 0:02:43.8]} 13... Nxd4 {[%clk 0:01:59.3]} 14.
g4 {[%clk 0:02:40.2]} 14... Nxe2+ {[%clk 0:01:58.1]} 15. Qxe2 {[%clk 0:02:40.1]}
15... Bg6 {[%clk 0:01:57.7]} 16. Be5 {[%clk 0:02:20.7]} 16... Rc8 {[%clk
0:01:48.2]} 17. f4 {[%clk 0:02:10.9]} 17... Bxd3 {[%clk 0:01:38.9]} 18. cxd3
{[%clk 0:02:09.6]} 18... Nd7 {[%clk 0:01:17.4]} 19. Bd4 {[%clk 0:01:30.2]} 19...
Bf6 {[%clk 0:01:10.9]} 20. Bxf6 {[%clk 0:01:21.6]} 20... Qxf6 {[%clk 0:01:09.7]}
21. f5 {[%clk 0:01:15.9]} 21... Qd4+ {[%clk 0:01:05.4]} 22. Kg2 {[%clk
0:01:11.7]} 22... e5 {[%clk 0:00:51.3]} 23. g5 {[%clk 0:00:54.1]} 23... f6
{[%clk 0:00:47.1]} 24. g6 {[%clk 0:00:51.3]} 24... Rfe8 {[%clk 0:00:32.4]} 25.
gxh7+ {[%clk 0:00:50.9]} 25... Kh8 {[%clk 0:00:32]} 26. Rac1 {[%clk 0:00:48.7]}
26... Rxc1 {[%clk 0:00:23.6]} 27. Rxc1 {[%clk 0:00:49.6]} 27... e4 {[%clk
0:00:20.1]} 28. Rc7 {[%clk 0:00:48.2]} 28... Ne5 {[%clk 0:00:18.7]} 29. dxe4
{[%clk 0:00:44.8]} 29... Qxe4+ {[%clk 0:00:18.1]} 30. Qxe4 {[%clk 0:00:44.9]}
30... dxe4 {[%clk 0:00:19]} 31. Rxb7 {[%clk 0:00:42.1]} 31... e3 {[%clk
0:00:19.3]} 32. Kf1 {[%clk 0:00:42]} 32... Nd3 {[%clk 0:00:18.3]} 33. Ke2 {[%clk
0:00:34.7]} 33... Nf4+ {[%clk 0:00:18]} 34. Ke1 {[%clk 0:00:33.7]} 34... e2
{[%clk 0:00:18.9]} 35. Nc2 {[%clk 0:00:33.7]} 35... Nd3+ {[%clk 0:00:18.2]} 36.
Kd2 {[%clk 0:00:33.9]} 36... e1=Q+ {[%clk 0:00:19.1]} 37. Nxe1 {[%clk
0:00:33.4]} 37... Nxe1 {[%clk 0:00:20]} 38. Rb6 {[%clk 0:00:32.3]} 38... Nf3+
{[%clk 0:00:20.9]} 39. Kd3 {[%clk 0:00:30.8]} 39... Nh4 {[%clk 0:00:20.1]} 40.
Rxa6 {[%clk 0:00:30.5]} 40... Rb8 {[%clk 0:00:19.8]} 41. Kc3 {[%clk 0:00:28.1]}
41... Nxf5 {[%clk 0:00:19.8]} 42. b4 {[%clk 0:00:28.9]} 42... Ne3 {[%clk
0:00:20]} 43. b5 {[%clk 0:00:28.7]} 43... f5 {[%clk 0:00:19.5]} 44. b6 {[%clk
0:00:27.7]} 44... f4 {[%clk 0:00:19.5]} 45. Kd3 {[%clk 0:00:25.7]} 45... Nd5
{[%clk 0:00:17.3]} 46. a5 {[%clk 0:00:25.1]} 46... Nb4+ {[%clk 0:00:17.6]} 47.
Ke4 {[%clk 0:00:21.7]} 47... Nxa6 {[%clk 0:00:18.5]} 48. Kxf4 {[%clk 0:00:22.3]}
48... Kxh7 {[%clk 0:00:17.5]} 49. Ke5 {[%clk 0:00:22.8]} 49... Kg6 {[%clk
0:00:17.6]} 50. Kd6 {[%clk 0:00:23.3]} 50... Kf5 {[%clk 0:00:17.5]} 51. Kc6
{[%clk 0:00:24]} 51... g5 {[%clk 0:00:16.6]} 52. Kb5 {[%clk 0:00:24.4]} 52...
Ra8 {[%clk 0:00:15.6]} 53. b7 {[%clk 0:00:24.1]} 53... Ra7 {[%clk 0:00:16]} 54.
Kb6 {[%clk 0:00:24.4]} 54... Rxb7+ {[%clk 0:00:16.1]} 55. Kxb7 {[%clk
0:00:24.7]} 55... Nb4 {[%clk 0:00:17]} 56. Kb6 {[%clk 0:00:23.6]} 56... Kf4
{[%clk 0:00:17.4]} 57. Kb5 {[%clk 0:00:24.1]} 57... Nd5 {[%clk 0:00:17.8]} 58.
Kc6 {[%clk 0:00:23.5]} 58... Nb4+ {[%clk 0:00:17.8]} 59. Kb5 {[%clk 0:00:23.8]}
59... Nd5 {[%clk 0:00:17.9]} 60. Kc6 {[%clk 0:00:24.2]} 60... Ne7+ {[%clk
0:00:18.5]} 61. Kd7 {[%clk 0:00:23.7]} 61... Nd5 {[%clk 0:00:18.3]} 62. Kc6
{[%clk 0:00:24.2]} 1/2-1/2

[Event "Early-Titled-Tuesday-Blitz-October-10-2023"]
[Site "Chess.com"]
[Date "2023.10.10"]
[Round "8"]
[White "Witty_Alien"]
[Black "NovikovaGalina"]
[Result "1-0"]
[WhiteElo "2243"]
[BlackElo "2415"]
[TimeControl "180+1"]
[EndTime "9:27:45 PDT"]
[Termination "Witty_Alien won on time"]

1. e4 {[%clk 0:03:00.9]} 1... e6 {[%clk 0:02:59]} 2. d4 {[%clk 0:03:00.8]} 2...
d5 {[%clk 0:02:59.9]} 3. exd5 {[%clk 0:02:48.6]} 3... exd5 {[%clk 0:03:00.8]} 4.
c4 {[%clk 0:02:47.3]} 4... Nf6 {[%clk 0:02:58.2]} 5. Nc3 {[%clk 0:02:47.1]} 5...
Be7 {[%clk 0:02:58]} 6. Nf3 {[%clk 0:02:45.3]} 6... O-O {[%clk 0:02:55.9]} 7.
Bd3 {[%clk 0:02:44.3]} 7... Bg4 {[%clk 0:02:56]} 8. O-O {[%clk 0:02:44.3]} 8...
c6 {[%clk 0:02:55.2]} 9. Bf4 {[%clk 0:02:20.8]} 9... Nbd7 {[%clk 0:02:54]} 10.
h3 {[%clk 0:02:17]} 10... Bh5 {[%clk 0:02:53.6]} 11. c5 {[%clk 0:02:14.2]} 11...
b6 {[%clk 0:02:41.8]} 12. b4 {[%clk 0:02:14.3]} 12... a5 {[%clk 0:02:41.8]} 13.
b5 {[%clk 0:01:55.5]} 13... bxc5 {[%clk 0:02:23]} 14. bxc6 {[%clk 0:01:53]}
14... Nb6 {[%clk 0:02:20.3]} 15. c7 {[%clk 0:01:50.2]} 15... Qc8 {[%clk
0:02:12.6]} 16. dxc5 {[%clk 0:01:41.7]} 16... Bxc5 {[%clk 0:02:12.2]} 17. Rc1
{[%clk 0:01:41.3]} 17... Bb4 {[%clk 0:01:18.2]} 18. Nb5 {[%clk 0:01:39.6]} 18...
Qd7 {[%clk 0:01:02.8]} 19. a3 {[%clk 0:01:36.4]} 19... Be7 {[%clk 0:00:57.1]}
20. Re1 {[%clk 0:01:29.7]} 20... Rfe8 {[%clk 0:00:55.3]} 21. Kh2 {[%clk
0:00:47.9]} 21... a4 {[%clk 0:00:30.2]} 22. g4 {[%clk 0:00:30.7]} 22... Bg6
{[%clk 0:00:29.4]} 23. Ne5 {[%clk 0:00:28.7]} 23... Qc8 {[%clk 0:00:23.3]} 24.
Nc6 {[%clk 0:00:23.2]} 24... Bf8 {[%clk 0:00:17.2]} 25. Rxe8 {[%clk 0:00:19.5]}
25... Qxe8 {[%clk 0:00:18.1]} 26. Bxg6 {[%clk 0:00:17.3]} 26... hxg6 {[%clk
0:00:17.7]} 27. Qd4 {[%clk 0:00:17.2]} 27... Nc8 {[%clk 0:00:13.6]} 28. g5
{[%clk 0:00:15.8]} 28... Ne4 {[%clk 0:00:13.1]} 29. Qxd5 {[%clk 0:00:15.6]}
29... Nxf2 {[%clk 0:00:11.4]} 30. Rc2 {[%clk 0:00:09.7]} 30... Qe1 {[%clk
0:00:08.1]} 31. Bg3 {[%clk 0:00:10.1]} 31... Qh1+ {[%clk 0:00:07.7]} 32. Qxh1
{[%clk 0:00:10.3]} 32... Nxh1 {[%clk 0:00:08.6]} 33. Kxh1 {[%clk 0:00:11.2]}
33... Nb6 {[%clk 0:00:07.8]} 34. Bf2 {[%clk 0:00:08.9]} 34... Nd5 {[%clk
0:00:07.7]} 35. Bc5 {[%clk 0:00:04.9]} 35... Rc8 {[%clk 0:00:06.6]} 36. Bxf8
{[%clk 0:00:04.9]} 36... Kxf8 {[%clk 0:00:07.4]} 37. Nca7 {[%clk 0:00:05.3]}
37... Nxc7 {[%clk 0:00:02.7]} 38. Nxc8 {[%clk 0:00:03.3]} 38... Nxb5 {[%clk
0:00:03.6]} 39. Rd2 {[%clk 0:00:03.2]} 39... Ke8 {[%clk 0:00:02.5]} 40. Nd6+
{[%clk 0:00:03.2]} 40... Nxd6 {[%clk 0:00:02.6]} 41. Rxd6 {[%clk 0:00:04.1]}
41... Ke7 {[%clk 0:00:03.4]} 42. Ra6 {[%clk 0:00:05]} 1-0